bitfinex/quotes_SOLUSD_20220307
["timestamp","ask_amount","ask_price","bid_price","bid_amount"]
[1646657011872,6.25,84.309,84.252,0.25]
[1646657012082,17.8074,84.3,84.252,0.25]
[1646657012271,6.25,84.299,84.251,23.5092]
[1646657012473,6.25,84.299,84.23,26.92295187]
[1646657012673,6.25,84.299,84.231,23.488]
[1646657013174,17.8098,84.29,84.231,23.488]
[1646657013375,0.25,84.289,84.231,23.488]
[1646657013575,0.25,84.289,84.241,24.0829]
[1646657014575,0.25,84.295,84.241,24.0829]
[1646657014776,0.25,84.295,84.242,0.25]
[1646657018100,17.8097,84.29,84.242,0.25]
[1646657018300,0.25,84.289,84.242,24.37455995]
[1646657018901,7.74,84.289,84.242,0.25]
[1646657019602,0.25,84.289,84.242,0.25]
[1646657020808,0.25,84.289,84.243,24.12455995]
[1646657021004,6.25,84.295,84.244,0.25]
[1646657021603,0.25,84.295,84.244,24.37455995]
[1646657022406,0.10361068,84.294,84.23,2.83613526]
[1646657022606,0.10361068,84.294,84.2,23.1648]
[1646657022607,0.10361068,84.294,84.205,24.8214]
[1646657022808,133.68,84.28,84.205,24.8214]
[1646657023007,40.9393349,84.259,84.205,24.8214]
[1646657023210,0.25,84.258,84.205,24.8214]
[1646657023708,0.25,84.258,84.206,0.25]
[1646657024210,17.8137,84.27,84.21,17.8133]
[1646657024510,47.9073988,84.268,84.211,0.25]
[1646657024710,0.25,84.267,84.211,0.25]
[1646657025408,6.25,84.267,84.211,0.25]
[1646657025608,0.25,84.267,84.211,0.25]
[1646657025811,6.25,84.267,84.211,0.25]
[1646657026212,6.0,84.267,84.22,17.8126]
[1646657026410,6.0,84.267,84.211,6.25]
[1646657026411,24.7947,84.293,84.221,0.25]
[1646657026611,24.7947,84.293,84.221,3.08613526]
[1646657027012,24.7947,84.293,84.222,8.83613526]
[1646657027210,24.7947,84.293,84.24,17.8042]
[1646657027411,24.7947,84.293,84.241,0.25]
[1646657027811,6.0,84.292,84.241,0.25]
[1646657028311,0.25,84.291,84.241,0.25]
[1646657028511,0.25,84.291,84.241,6.25]
[1646657029311,0.25,84.291,84.241,0.25]
[1646657030010,0.25,84.291,84.241,6.25]
[1646657030212,17.8095,84.29,84.242,6.0]
[1646657030412,0.25,84.289,84.243,0.25]
[1646657030615,0.25,84.289,84.241,0.25]
[1646657031615,0.25,84.289,84.24,17.8083]
[1646657031814,0.25,84.291,84.241,0.25]
[1646657032613,17.8093,84.29,84.241,0.25]
[1646657032815,0.25,84.289,84.241,0.25]
[1646657033618,0.25,84.289,84.231,6.25]
[1646657033817,36.70713155,84.289,84.231,6.25]
[1646657034223,36.70713155,84.289,84.231,6.0]
[1646657035118,36.70713155,84.289,84.232,2.83613526]
[1646657035320,36.70713155,84.289,84.233,6.0]
[1646657035518,17.8115,84.28,84.234,0.25]
[1646657035720,0.25,84.279,84.234,0.25]
[1646657035918,0.25,84.279,84.227,0.25]
[1646657036319,0.25,84.279,84.226,6.25]
[1646657036724,0.25,84.287,84.23,17.8103]
[1646657036921,6.25,84.292,84.231,6.25]
[1646657037121,6.25,84.292,84.231,33.73513377]
[1646657037321,6.25,84.292,84.232,24.64899851]
[1646657037523,6.25,84.292,84.233,6.25]
[1646657037921,6.25,84.292,84.234,24.64899851]
[1646657038121,6.25,84.292,84.235,6.25]
[1646657038422,6.25,84.292,84.236,24.64899851]
[1646657038622,6.25,84.292,84.237,6.25]
[1646657039120,17.8096,84.29,84.24,17.8063]
[1646657039323,0.25,84.289,84.241,0.25]
[1646657039722,0.25,84.289,84.241,6.25]
[1646657040530,0.25,84.289,84.25,17.8062]
[1646657040726,0.25,84.289,84.251,0.25]
[1646657040928,6.0,84.292,84.251,0.25]
[1646657041329,0.25,84.291,84.251,0.25]
[1646657041724,0.25,84.291,84.24,0.25]
[1646657041926,0.25,84.291,84.24,18.0567]
[1646657042126,0.25,84.291,84.242,0.22367773]
[1646657042326,6.0,84.317,84.242,128.62]
[1646657042527,22.6814,84.326,84.244,119.4]
[1646657042729,22.6814,84.326,84.246,0.11711478]
[1646657043127,22.6814,84.326,84.25,17.8018]
[1646657043326,22.6814,84.326,84.251,30.1638]
[1646657043527,22.6814,84.326,84.251,54.81279851]
[1646657043727,6.0,84.325,84.252,24.64899851]
[1646657043927,6.0,84.325,84.253,6.25]
[1646657044128,6.0,84.325,84.26,17.8023]
[1646657044328,6.0,84.325,84.261,6.25]
[1646657044528,23.8078,84.338,84.262,119.4]
[1646657044728,23.8078,84.338,84.261,30.89899851]
[1646657044729,23.8078,84.338,84.264,119.4]
[1646657044930,23.8078,84.338,84.265,6.25]
[1646657045129,23.8078,84.338,84.265,48.35693494]
[1646657045333,18.1832,84.347,84.27,17.7999]
[1646657045531,18.1832,84.347,84.271,6.25]
[1646657045730,1.60541886,84.357,84.272,119.4]
[1646657046030,24.6092,84.359,84.275,0.18940238]
[1646657046230,24.6092,84.359,84.275,6.43940238]
[1646657046432,24.6092,84.359,84.29,17.7967]
[1646657046729,24.6092,84.359,84.291,30.0878]
[1646657046932,24.6092,84.359,84.291,58.46560044]
[1646657047129,24.6092,84.359,84.292,28.37780044]
[1646657047330,24.6092,84.359,84.293,6.25]
[1646657047532,24.6092,84.359,84.293,34.62780044]
[1646657047730,24.6092,84.359,84.294,25.54166518]
[1646657048032,24.6092,84.359,84.295,6.25]
[1646657048330,0.25,84.358,84.3,17.7936]
[1646657048529,0.25,84.358,84.301,6.25]
[1646657049131,17.793,84.37,84.302,25.54166518]
[1646657049331,6.0,84.368,84.303,6.25]
[1646657049731,15.11,84.368,84.303,0.25]
[1646657050130,43.55434958,84.367,84.303,0.25]
[1646657050352,17.7945,84.36,84.303,0.25]
[1646657050531,0.25,84.359,84.303,0.25]
[1646657051530,17.7972,84.35,84.302,23.8378]
[1646657051731,0.25,84.349,84.302,23.8378]
[1646657052832,0.25,84.349,84.282,17.37299338]
[1646657052833,40.89809131,84.339,84.27,44.89861336]
[1646657053032,6.0,84.338,84.273,23.7966]
[1646657053534,29.0773,84.338,84.273,23.7966]
[1646657054130,17.8027,84.33,84.274,0.25]
[1646657055632,0.25,84.329,84.274,0.25]
[1646657056133,0.25,84.337,84.28,17.7986]
[1646657056334,0.25,84.337,84.281,0.25]
[1646657060339,0.25,84.337,84.282,25.54166518]
[1646657061740,0.25,84.337,84.283,0.25]
[1646657063845,0.25,84.337,84.283,25.79166518]
[1646657065357,0.25,84.337,84.29,17.7967]
[1646657065657,6.25,84.36,84.291,50.7793439]
[1646657065857,6.0,84.366,84.292,23.6673]
[1646657066058,6.0,84.367,84.293,0.25]
[1646657066260,6.0,84.367,84.293,26.08985918]
[1646657066457,48.39914512,84.366,84.294,2.83613526]
[1646657066659,17.7948,84.36,84.3,17.7944]
[1646657066858,17.7948,84.36,84.301,0.25]
[1646657067357,0.25,84.359,84.301,0.25]
[1646657068863,15.52,84.359,84.301,0.25]
[1646657070960,17.7967,84.35,84.301,0.25]
[1646657071159,17.7967,84.35,84.292,23.6673]
[1646657071160,6.25,84.349,84.295,0.25]
[1646657071364,6.25,84.349,84.293,0.25]
[1646657071760,6.0,84.348,84.293,0.25]
[1646657071962,48.36807243,84.339,84.293,0.25]
[1646657072363,0.25,84.338,84.293,0.25]
[1646657073563,6.25,84.349,84.293,6.25]
[1646657074566,35.01576041,84.348,84.293,6.25]
[1646657074767,6.25,84.347,84.293,6.25]
[1646657075567,6.25,84.347,84.293,0.25]
[1646657075969,0.25,84.347,84.293,0.25]
[1646657076571,0.25,84.349,84.293,0.25]
[1646657077370,48.2680345,84.349,84.293,0.25]
[1646657078071,49.87345336,84.349,84.293,0.25]
[1646657078672,48.2680345,84.349,84.293,0.25]
[1646657079075,1.60541886,84.348,84.294,5.929]
[1646657079274,0.25,84.347,84.295,0.25]
[1646657079473,0.25,84.347,84.296,5.929]
[1646657079673,0.25,84.347,84.297,0.25]
[1646657079973,1.85541886,84.347,84.298,5.929]
[1646657080173,1.85541886,84.347,84.299,0.25]
[1646657080372,1.85541886,84.347,84.3,5.929]
[1646657080574,0.25,84.347,84.301,0.25]
[1646657080775,0.25,84.347,84.302,5.929]
[1646657081073,1.85541886,84.347,84.302,5.929]
[1646657082377,0.25,84.347,84.301,0.25]
[1646657082577,0.25,84.347,84.294,0.25]
[1646657082777,0.25,84.347,84.295,5.929]
[1646657082977,0.25,84.347,84.296,0.25]
[1646657083178,0.25,84.347,84.297,5.929]
[1646657083378,0.25,84.347,84.298,0.25]
[1646657083980,1.85541886,84.347,84.298,0.25]
[1646657084580,1.85541886,84.347,84.294,6.25]
[1646657084782,0.25,84.347,84.295,5.929]
[1646657084980,0.25,84.347,84.296,6.25]
[1646657085381,0.25,84.347,84.297,5.929]
[1646657085582,0.25,84.347,84.298,6.25]
[1646657085783,0.25,84.347,84.299,5.929]
[1646657086082,41.3372498,84.347,84.3,6.25]
[1646657086282,41.3372498,84.347,84.301,5.929]
[1646657086483,42.94266866,84.347,84.301,5.929]
[1646657086687,17.7988,84.34,84.301,5.929]
[1646657086886,6.25,84.339,84.301,5.929]
[1646657087087,6.25,84.339,84.3,6.0]
[1646657087389,1.60541886,84.338,84.293,6.0]
[1646657087587,6.25,84.337,84.293,6.0]
[1646657088286,6.0,84.336,84.293,6.0]
[1646657088487,0.25,84.335,84.293,6.0]
[1646657088685,0.25,84.337,84.293,6.0]
[1646657089686,0.25,84.339,84.294,5.93]
[1646657089990,0.25,84.339,84.295,6.0]
[1646657090188,0.25,84.339,84.296,5.93]
[1646657090387,0.25,84.339,84.297,6.0]
[1646657090589,0.25,84.339,84.298,5.929]
[1646657090790,0.25,84.339,84.299,6.0]
[1646657091392,0.25,84.339,84.294,6.0]
[1646657092390,0.25,84.339,84.293,5.929]
[1646657092595,17.8011,84.33,84.292,23.6673]
[1646657092791,6.25,84.329,84.292,23.6673]
[1646657093191,6.25,84.329,84.267,28.68181477]
[1646657093492,0.25,84.329,84.273,6.181]
[1646657093891,0.25,84.33,84.273,6.181]
[1646657094291,0.25,84.331,84.273,6.181]
[1646657095091,17.8014,84.33,84.273,6.181]
[1646657095293,6.25,84.329,84.273,6.181]
[1646657096592,17.8029,84.32,84.273,5.931]
[1646657096793,36.9819754,84.318,84.269,5.931]
[1646657096999,36.9819754,84.318,84.268,22.9366]
[1646657097192,6.25,84.317,84.268,22.9366]
[1646657097593,17.8098,84.31,84.268,22.9366]
[1646657097795,6.0,84.309,84.253,5.931]
[1646657097994,6.0,84.309,84.253,30.2432]
[1646657098196,119.59229922,84.308,84.253,5.931]
[1646657098494,1.60541886,84.293,84.24,5.932]
[1646657098696,14.28,84.29,84.21,5.933]
[1646657098995,17.815,84.27,84.217,2.83613526]
[1646657099296,25.865,84.27,84.21,5.933]
[1646657099494,6.0,84.269,84.197,5.934]
[1646657099693,28.7608,84.269,84.197,5.934]
[1646657099894,28.7608,84.269,84.211,2.83613526]
[1646657100100,17.8175,84.26,84.212,5.934]
[1646657100298,6.25,84.259,84.212,5.934]
[1646657100696,14.28,84.29,84.213,122.48613526]
[1646657100895,28.7608,84.289,84.214,5.934]
[1646657101098,6.0,84.289,84.216,119.4]
[1646657101295,17.8185,84.299,84.218,119.4]
[1646657101296,6.0,84.298,84.218,119.4]
[1646657101495,17.8093,84.29,84.22,137.2119]
[1646657101695,6.0,84.289,84.221,12.184]
[1646657101895,6.0,84.289,84.221,15.02013526]
[1646657102096,0.25,84.288,84.221,15.02013526]
[1646657102294,0.25,84.288,84.222,2.83613526]
[1646657102495,0.25,84.288,84.223,12.184]
[1646657102900,0.25,84.288,84.23,17.8103]
[1646657103096,0.25,84.288,84.231,6.184]
[1646657103296,0.25,84.298,84.231,9.02013526]
[1646657103696,0.25,84.298,84.232,2.83613526]
[1646657103897,0.25,84.298,84.233,5.933]
[1646657104097,17.8095,84.29,84.233,5.933]
[1646657104297,6.25,84.289,84.233,5.933]
[1646657104498,0.25,84.289,84.234,25.61952611]
[1646657104798,1.60541886,84.324,84.236,119.4]
[1646657105097,1.60541886,84.338,84.238,119.4]
[1646657105296,6.0,84.337,84.24,137.2079]
[1646657105499,6.0,84.338,84.242,119.4]
[1646657105696,6.0,84.338,84.25,59.339]
[1646657105896,43.54080983,84.339,84.252,119.4]
[1646657106097,6.0,84.338,84.253,30.9929]
[1646657106297,17.8008,84.33,84.26,17.8036]
[1646657106499,6.0,84.329,84.261,0.25]
[1646657106698,0.25,84.328,84.261,9.08613526]
[1646657106898,6.0,84.329,84.261,3.08613526]
[1646657107098,6.0,84.339,84.262,2.83613526]
[1646657107298,7.60541886,84.345,84.263,6.25]
[1646657107498,6.0,84.345,84.263,6.25]
[1646657107700,6.0,84.346,84.264,2.83613526]
[1646657107900,6.0,84.346,84.265,6.25]
[1646657108101,17.8013,84.33,84.27,17.8017]
[1646657108299,6.25,84.329,84.271,0.25]
[1646657108699,6.25,84.329,84.272,2.83613526]
[1646657108899,6.25,84.329,84.273,0.25]
[1646657109299,6.25,84.329,84.274,2.83613526]
[1646657109500,6.25,84.329,84.275,0.25]
[1646657110102,6.25,84.329,84.27,17.8017]
[1646657110301,17.8033,84.32,84.26,17.8033]
[1646657110500,0.25,84.319,84.26,17.8033]
[1646657110901,0.25,84.319,84.261,2.83613526]
[1646657111404,0.25,84.319,84.262,24.96458285]
[1646657111701,25.0963,84.339,84.27,17.7996]
[1646657112002,6.0,84.338,84.271,0.25]
[1646657112203,0.25,84.337,84.271,0.25]
[1646657113000,0.25,84.337,84.272,2.83613526]
[1646657113205,17.8008,84.33,84.273,0.25]
[1646657113405,6.25,84.329,84.273,0.25]
[1646657113602,6.25,84.329,84.274,2.83613526]
[1646657113803,6.25,84.329,84.275,0.25]
[1646657114703,6.25,84.329,84.274,2.83613526]
[1646657114903,17.8031,84.32,84.274,2.83613526]
[1646657115104,36.90167667,84.319,84.274,2.83613526]
[1646657115506,36.90167667,84.319,84.263,22.8502]
[1646657115507,0.25,84.319,84.263,22.8502]
[1646657115807,6.25,84.319,84.264,0.25]
[1646657116205,17.8054,84.31,84.264,0.25]
[1646657116406,42.98774333,84.309,84.263,22.8502]
[1646657116711,6.0,84.308,84.25,24.96458285]
[1646657116906,0.25,84.307,84.25,24.96458285]
[1646657117108,17.8073,84.3,84.242,23.1891]
[1646657117306,6.25,84.299,84.243,24.96458285]
[1646657117706,6.25,84.299,84.234,22.525]
[1646657118111,0.25,84.299,84.234,22.525]
[1646657118315,118.4,84.302,84.234,22.525]
[1646657118513,17.8096,84.29,84.234,22.525]
[1646657118714,6.25,84.289,84.234,22.525]
[1646657119615,47.77923899,84.279,84.233,5.933]
[1646657119815,6.25,84.278,84.233,5.933]
[1646657120615,0.25,84.278,84.233,5.933]
[1646657121630,40.5192268,84.278,84.233,5.933]
[1646657121833,6.0,84.277,84.233,5.933]
[1646657122032,0.25,84.276,84.233,5.933]
[1646657123032,0.25,84.276,84.234,2.83613526]
[1646657123233,6.0,84.303,84.235,0.25]
[1646657123438,1.60541886,84.319,84.235,0.25]
[1646657123637,1.60541886,84.327,84.236,137.57854594]
[1646657123836,48.4926,84.331,84.238,119.4]
[1646657124035,48.4926,84.331,84.24,137.2091]
[1646657124235,48.4926,84.331,84.242,119.4]
[1646657124438,48.4926,84.331,84.244,119.4]
[1646657124736,0.25,84.33,84.246,119.4]
[1646657125033,0.25,84.33,84.245,6.25]
[1646657125034,0.25,84.33,84.248,119.4]
[1646657125234,6.25,84.33,84.25,119.4]
[1646657125434,6.25,84.33,84.252,119.4]
[1646657125636,6.25,84.33,84.254,119.4]
[1646657125837,6.25,84.33,84.255,6.25]
[1646657126037,6.25,84.33,84.255,9.08613526]
[1646657126335,24.052,84.33,84.26,17.7994]
[1646657126535,24.052,84.33,84.261,6.25]
[1646657126734,24.052,84.33,84.261,9.08613526]
[1646657127134,24.052,84.33,84.262,2.83613526]
[1646657127335,24.052,84.33,84.263,6.25]
[1646657127736,24.052,84.33,84.264,2.83613526]
[1646657127936,24.052,84.33,84.265,6.25]
[1646657129541,24.052,84.33,84.265,0.25]
[1646657129740,24.052,84.33,84.262,0.25]
[1646657129942,31.752,84.33,84.256,0.25]
[1646657130141,31.752,84.33,84.263,2.83613526]
[1646657130343,31.752,84.33,84.264,6.25]
[1646657131244,31.752,84.33,84.27,17.8025]
[1646657131446,31.752,84.33,84.271,0.25]
[1646657132743,31.752,84.33,84.265,0.25]
[1646657132943,31.752,84.33,84.261,0.25]
[1646657133345,33.35741886,84.33,84.261,0.25]
[1646657133848,33.35741886,84.33,84.27,17.8026]
[1646657134046,33.35741886,84.33,84.271,0.25]
[1646657134249,31.752,84.33,84.271,0.25]
[1646657134445,33.35741886,84.33,84.271,0.25]
[1646657134648,33.35741886,84.33,84.272,5.931]
[1646657135545,31.752,84.33,84.272,5.931]
[1646657136450,33.35741886,84.33,84.272,5.931]
[1646657136849,31.752,84.33,84.272,5.931]
[1646657137349,33.35741886,84.33,84.272,5.931]
[1646657140956,31.752,84.33,84.272,5.931]
[1646657141464,13.95,84.33,84.28,17.8007]
[1646657141758,6.25,84.33,84.281,5.93]
[1646657142558,24.0518,84.33,84.281,5.93]
[1646657142958,24.0518,84.33,84.274,5.93]
[1646657143159,31.5818,84.33,84.271,0.25]
[1646657143360,31.5818,84.33,84.264,0.25]
[1646657143560,33.18721886,84.33,84.264,0.25]
[1646657143963,31.5818,84.33,84.264,0.25]
[1646657144565,49.029,84.33,84.264,3.08613526]
[1646657144964,50.63441886,84.33,84.264,3.08613526]
[1646657146164,50.63441886,84.33,84.27,17.8028]
[1646657146366,50.63441886,84.33,84.271,6.181]
[1646657148282,1.60541886,84.328,84.271,6.181]
[1646657148484,6.25,84.327,84.271,6.181]
[1646657149086,17.8038,84.32,84.271,6.181]
[1646657149285,38.56343487,84.318,84.271,6.181]
[1646657149484,0.25,84.317,84.271,6.181]
[1646657151787,0.25,84.317,84.271,5.931]
[1646657151987,17.8061,84.31,84.255,5.931]
[1646657152187,0.25,84.309,84.256,0.25]
[1646657152390,1.60541886,84.308,84.257,5.932]
[1646657152589,1.85541886,84.307,84.258,6.25]
[1646657152791,6.25,84.306,84.259,5.932]
[1646657153088,6.25,84.306,84.26,0.25]
[1646657153288,0.25,84.306,84.261,5.932]
[1646657153489,1.60541886,84.309,84.262,0.25]
[1646657153688,1.60541886,84.312,84.262,0.25]
[1646657153890,1.60541886,84.313,84.262,0.25]
[1646657154092,1.60541886,84.312,84.262,0.25]
[1646657154291,1.60541886,84.313,84.262,0.25]
[1646657154691,0.25,84.312,84.261,0.25]
[1646657155094,0.25,84.312,84.262,2.83613526]
[1646657155293,0.25,84.312,84.263,6.25]
[1646657155494,0.25,84.312,84.263,0.25]
[1646657155695,0.25,84.313,84.263,6.25]
[1646657156894,0.25,84.314,84.263,6.25]
[1646657157094,0.25,84.314,84.27,17.8024]
[1646657157294,0.25,84.314,84.271,6.181]
[1646657157493,0.25,84.315,84.271,6.181]
[1646657157694,1.85541886,84.316,84.271,6.181]
[1646657162301,1.85541886,84.316,84.271,0.25]
[1646657162302,17.8062,84.31,84.271,0.25]
[1646657162501,0.25,84.309,84.266,6.25]
[1646657163501,0.25,84.309,84.266,0.25]
[1646657163800,6.25,84.309,84.252,0.25]
[1646657164204,17.8081,84.3,84.252,0.25]
[1646657164506,41.44705618,84.299,84.251,6.0]
[1646657164703,0.25,84.298,84.251,6.0]
[1646657166604,17.8103,84.29,84.24,24.5508]
[1646657166903,6.25,84.289,84.24,24.5508]
[1646657167805,6.25,84.289,84.241,0.25]
[1646657171808,17.8124,84.28,84.217,21.94969133]
[1646657172110,6.25,84.279,84.218,23.6545]
[1646657172308,6.25,84.279,84.218,23.4045]
[1646657172707,6.0,84.278,84.218,23.4045]
[1646657172907,0.25,84.277,84.218,23.4045]
[1646657173108,119.4,84.269,84.207,23.7084]
[1646657173309,45.31790725,84.267,84.207,23.7084]
[1646657173607,45.31790725,84.267,84.202,114.1]
[1646657173608,0.15499584,84.265,84.202,114.1]
[1646657173808,0.15499584,84.265,84.192,21.94969133]
[1646657174009,23.73829584,84.265,84.192,21.94969133]
[1646657174210,6.25,84.264,84.192,46.63917605]
[1646657174810,6.25,84.264,84.193,0.25]
[1646657175011,119.4,84.263,84.193,0.25]
[1646657175209,119.4,84.249,84.18,42.51068472]
[1646657175411,0.19315516,84.247,84.18,24.68948472]
[1646657175609,119.59315516,84.247,84.174,2.83613526]
[1646657176009,119.59315516,84.247,84.167,46.63917605]
[1646657176218,119.4,84.245,84.168,6.0]
[1646657176410,17.8241,84.23,84.168,6.0]
[1646657176610,41.59620193,84.229,84.168,6.0]
[1646657176810,160.99620193,84.229,84.168,6.0]
[1646657177210,0.25,84.228,84.168,6.0]
[1646657177512,6.25,84.228,84.168,6.0]
[1646657177710,6.25,84.228,84.169,0.25]
[1646657178109,17.8257,84.22,84.169,0.25]
[1646657178309,6.25,84.219,84.169,0.25]
[1646657180215,17.8277,84.21,84.168,6.0]
[1646657180413,25.4477,84.21,84.156,6.0]
[1646657180614,6.25,84.209,84.157,0.25]
[1646657180815,6.25,84.209,84.156,6.0]
[1646657181214,125.65,84.209,84.154,24.68948472]
[1646657181414,17.8296,84.2,84.138,21.94969133]
[1646657181712,35.669404,84.199,84.139,23.2249]
[1646657181913,41.669404,84.199,84.139,23.2249]
[1646657182618,161.069404,84.199,84.152,6.0]
[1646657182813,161.069404,84.199,84.14,6.0]
[1646657183014,161.069404,84.199,84.141,0.25]
[1646657183213,17.8315,84.19,84.141,0.25]
[1646657183416,6.25,84.189,84.139,23.2249]
[1646657183614,6.25,84.189,84.124,39.6889554]
[1646657183615,0.15165611,84.188,84.124,39.6889554]
[1646657183814,0.15165611,84.188,84.115,23.2249]
[1646657184015,0.15165611,84.188,84.111,14.99947068]
[1646657184220,0.34133874,84.178,84.099,39.6889554]
[1646657184517,124.03050446,84.169,84.05,17.8458]
[1646657184716,119.74133874,84.167,84.069,24.21839066]
[1646657184915,0.34133874,84.165,84.069,24.21839066]
[1646657185118,119.4,84.159,84.069,24.21839066]
[1646657185316,119.4,84.149,84.069,24.21839066]
[1646657185516,119.4,84.139,84.069,24.21839066]
[1646657185716,119.4,84.137,84.069,24.21839066]
[1646657185916,0.34133874,84.136,84.069,24.21839066]
[1646657186115,0.34133874,84.134,84.069,24.21839066]
[1646657186314,0.34133874,84.132,84.069,24.21839066]
[1646657186516,119.4,84.131,84.069,24.21839066]
[1646657186716,119.4,84.129,84.07,6.0]
[1646657186918,125.65,84.128,84.07,6.0]
[1646657187116,119.4,84.128,84.07,6.0]
[1646657187317,119.4,84.126,84.07,6.0]
[1646657187515,6.25,84.125,84.07,6.0]
[1646657187720,12.42525547,84.119,84.07,6.0]
[1646657187919,6.25,84.118,84.07,6.0]
[1646657189242,6.25,84.118,84.097,0.00616429]
[1646657189443,130.0,84.109,84.017,23.8358]
[1646657189642,48.2151524,84.108,84.017,23.8358]
[1646657189843,0.34133874,84.106,84.024,26.15815567]
[1646657190444,0.34133874,84.106,84.025,5.947]
[1646657190845,0.34133874,84.106,84.026,6.0]
[1646657191045,0.34133874,84.106,84.027,5.947]
[1646657191244,0.34133874,84.106,84.028,6.0]
[1646657191446,0.34133874,84.106,84.029,5.947]
[1646657191645,14.28,84.11,84.03,6.0]
[1646657191846,14.28,84.11,84.05,17.8464]
[1646657192045,14.28,84.11,84.051,5.946]
[1646657192244,14.28,84.11,84.052,0.25]
[1646657192446,14.28,84.11,84.051,0.25]
[1646657193044,0.25,84.109,84.051,0.25]
[1646657193645,14.28,84.11,84.051,0.25]
[1646657193846,14.28,84.11,84.052,5.946]
[1646657194047,6.0,84.109,84.053,0.25]
[1646657194245,6.0,84.109,84.054,5.946]
[1646657194447,6.0,84.109,84.055,0.25]
[1646657194746,6.0,84.109,84.053,0.25]
[1646657194946,0.25,84.108,84.054,5.946]
[1646657195149,0.25,84.108,84.035,31.93216367]
[1646657195349,0.25,84.108,84.036,26.18216367]
[1646657195547,0.25,84.108,84.037,6.0]
[1646657195747,0.25,84.108,84.038,6.197]
[1646657195946,0.25,84.108,84.04,17.8496]
[1646657196148,0.25,84.108,84.041,12.197]
[1646657196347,0.25,84.108,84.041,11.947]
[1646657196546,0.25,84.108,84.041,6.0]
[1646657196747,0.25,84.108,84.042,25.93216367]
[1646657197348,0.31,84.108,84.042,25.93216367]
[1646657199052,119.71,84.108,84.042,25.93216367]
[1646657199251,119.71,84.108,75.016,1.0]
[1646657199252,137.2529,84.1,84.025,5.947]
[1646657199452,5.29715521,84.088,84.026,6.0]
[1646657199656,119.56647646,84.086,84.015,6.0]
[1646657199853,119.4,84.084,84.016,5.948]
[1646657200053,119.4,84.082,84.017,6.0]
[1646657200255,119.4,84.08,84.018,5.948]
[1646657200457,6.25,84.081,84.018,5.948]
[1646657200458,0.25,84.079,84.019,6.0]
[1646657200653,0.25,84.081,84.02,5.948]
[1646657200855,0.25,84.081,84.021,6.0]
[1646657201055,0.25,84.081,84.022,5.948]
[1646657201256,17.8602,84.07,84.023,6.0]
[1646657201454,6.25,84.069,84.024,5.949]